bitfinex/quotes_SOLUSD_20250928
["timestamp","ask_amount","ask_price","bid_price","bid_amount"]
[1759055239357,0.72,201.01,200.94,58.09000312]
[1759055239653,0.72,201.0,200.94,58.09000312]
[1759055239858,0.72,200.99,200.94,58.09000312]
[1759055241161,30.97467542,201.02,200.94,58.09000312]
[1759055241343,0.68,200.98,200.94,43.11658094]
[1759055241945,4.97496008,201.01,200.94,43.11658094]
[1759055242158,0.68,201.0,200.94,43.11658094]
[1759055242356,0.68,200.99,200.94,38.14]
[1759055242558,0.68,200.98,200.94,38.14]
[1759055242760,0.68,200.97,200.94,38.14]
[1759055244272,0.68,200.96,200.94,38.14]
[1759055244449,0.68,200.95,200.94,38.14]
[1759055245160,0.68,200.96,200.94,38.14]
[1759055250449,0.68,201.0,200.94,43.11655772]
[1759055251156,0.68,200.99,200.94,43.11655772]
[1759055251463,0.68,200.98,200.94,43.11655772]
[1759055253057,0.68,200.97,200.94,43.11655772]
[1759055253861,0.68,201.06,200.95,39.59559401]
[1759055254056,8.29807333,201.09,200.96,38.04]
[1759055254254,0.68,201.05,200.96,38.04]
[1759055254672,3.32517464,201.08,200.97,53.08893945]
[1759055254883,0.68,201.04,200.98,38.12]
[1759055255190,0.68,201.03,200.98,38.12]
[1759055255357,0.68,201.03,200.99,14.96968638]
[1759055257475,0.68,201.03,200.99,19.94501141]
[1759055258480,0.68,201.03,200.99,4.97532503]
[1759055260979,34.29883646,201.06,200.98,38.12]
[1759055261182,0.68,201.02,200.98,38.12]
[1759055262084,0.68,201.03,200.98,38.12]
[1759055262468,0.68,201.03,200.98,43.09552338]
[1759055265178,0.68,201.02,200.98,43.09552338]
[1759055265980,34.29883646,201.06,200.98,43.09552338]
[1759055266162,0.68,201.03,200.98,43.09552338]
[1759055266583,0.68,201.02,200.98,4.97552338]
[1759055266891,0.68,201.03,200.98,43.05552338]
[1759055267668,0.68,201.02,200.98,43.05552338]
[1759055268470,0.68,201.01,200.94,0.1]
[1759055268670,0.68,201.01,200.94,38.18]
[1759055268877,0.68,201.0,200.94,53.15192764]
[1759055269072,3.32517464,201.04,200.94,38.18]
[1759055269284,0.68,201.0,200.94,38.18]
[1759055269592,0.68,200.99,200.94,38.18]
[1759055269889,0.68,200.98,200.94,38.18]
[1759055270074,0.68,200.97,200.94,38.18]
[1759055274695,0.72,200.98,200.94,38.18]
[1759055277779,0.72,201.03,200.94,43.1565417]
[1759055278007,0.72,201.02,200.94,43.1565417]
[1759055278212,26.72,201.02,200.94,55.59806653]
[1759055278378,26.72,201.02,200.94,70.56999417]
[1759055278881,0.72,201.02,200.94,70.56999417]
[1759055279099,26.0,201.01,200.94,70.56999417]
[1759055280384,0.72,201.02,200.94,70.56999417]
[1759055280581,26.0,201.01,200.94,70.56999417]
[1759055281181,0.72,201.02,200.94,70.56999417]
[1759055281784,0.72,201.02,200.94,55.59806653]
[1759055282093,0.72,201.02,200.94,70.56999417]
[1759055282280,0.72,201.01,200.94,70.56999417]
[1759055286391,3.32517464,201.07,200.98,13.59559401]
[1759055286596,0.72,201.09,201.0,13.59559401]
[1759055286896,0.72,201.09,200.98,13.59559401]
[1759055287086,0.72,201.09,201.0,13.59559401]
[1759055287804,0.72,201.09,201.01,17.41206904]
[1759055288116,0.72,201.09,201.02,38.38]
[1759055288402,3.32629833,201.12,201.02,38.38]
[1759055288707,0.72,201.13,201.02,53.3452059]
[1759055288887,0.72,201.13,201.02,38.38]
[1759055289086,26.72,201.13,201.03,14.963713]
[1759055289493,0.72,201.12,201.02,38.38]
[1759055289698,0.72,201.12,201.04,14.963713]
[1759055289898,0.72,201.12,201.05,38.38]
[1759055290217,0.72,201.12,201.06,4.9736397]
[1759055290415,0.72,201.12,201.06,19.9373527]
[1759055290920,0.67,201.15,201.06,17.40773897]
[1759055291412,1e-08,201.16,201.08,13.59559401]
[1759055291707,1e-08,201.16,201.11,26.0]
[1759055292089,1e-08,201.16,201.13,4.97190871]
[1759055292292,1e-08,201.16,201.14,38.4]
[1759055294314,1e-08,201.16,201.14,43.37150631]
[1759055294489,1e-08,201.16,201.15,38.4]
[1759055294694,1e-08,201.16,201.14,4.97150631]
[1759055294894,1e-08,201.16,201.15,38.4]
[1759055295398,1e-08,201.16,201.15,43.37141436]
[1759055297709,1e-08,201.16,201.15,45.36538261]
[1759055300520,0.68000001,201.16,201.15,1.99396825]
[1759055300696,0.68000001,201.16,201.14,4.97165543]
[1759055300895,0.68000001,201.16,201.15,38.36]
[1759055303022,0.68000001,201.16,201.13,1.99436592]
[1759055303225,0.68,201.15,201.14,38.4]
[1759055303411,0.68,201.15,201.11,1.99456481]
[1759055303606,1e-08,201.16,201.12,38.4]
[1759055303607,0.68,201.14,201.12,38.4]
[1759055303810,0.68,201.13,201.12,38.4]
[1759055307709,0.68,201.15,201.12,38.4]
[1759055307918,0.68,201.14,201.12,38.4]
[1759055308126,1e-08,201.16,201.12,43.37215456]
[1759055308428,1e-08,201.16,201.13,13.59559401]
[1759055308617,1e-08,201.16,201.14,38.44]
[1759055309940,1e-08,201.16,201.15,1.99406765]
[1759055310923,0.68000001,201.16,201.15,38.42]
[1759055314833,0.68000001,201.16,201.13,1.99436592]
[1759055315036,0.68,201.15,201.14,38.4]
[1759055315423,0.68,201.15,201.12,1.99456481]
[1759055315737,0.68,201.14,201.13,38.42]
[1759055319933,0.68000001,201.16,201.13,38.42]
[1759055320241,0.68,201.15,201.13,38.42]
[1759055320426,0.68,201.14,201.13,38.42]
[1759055324635,0.68000001,201.16,201.13,38.42]
[1759055325427,1e-08,201.16,201.13,38.42]
[1759055325753,0.68,201.15,201.13,38.42]
[1759055327723,1e-08,201.16,201.13,38.42]
[1759055327956,0.68,201.15,201.13,38.42]
[1759055328561,1e-08,201.16,201.13,38.42]
[1759055329058,1e-08,201.16,201.13,43.39189991]
[1759055331026,0.66000001,201.16,201.13,38.42]
[1759055334957,0.66,201.15,201.14,38.34]
[1759055335154,0.66,201.15,201.14,38.36]
[1759055340163,0.66,201.15,201.08,15.94395691]
[1759055340378,0.66,201.14,201.09,43.3128977]
[1759055342264,1e-08,201.16,201.08,4.97314501]
[1759055342466,0.66,201.13,201.09,38.32]
[1759055344859,1e-08,201.16,201.1,4.97265042]
[1759055345060,0.66,201.14,201.1,4.97265042]
[1759055349359,1e-08,201.16,201.1,4.97265042]
[1759055349559,0.66,201.15,201.1,4.97265042]
[1759055349773,0.66,201.14,201.1,4.97265042]
[1759055349971,0.7,201.13,201.1,4.97265042]
[1759055358492,0.7,201.13,201.11,38.26]
[1759055358895,0.7,201.13,201.08,12.43227039]
[1759055359191,0.7,201.13,201.09,38.26]
[1759055360666,0.7,201.13,201.1,4.97265042]
[1759055363799,0.69,201.15,201.08,12.43227039]
[1759055364099,0.69,201.15,201.09,38.22]
[1759055364418,0.69,201.14,201.1,38.22]
[1759055365399,0.69,201.14,201.11,43.19230744]
[1759055366196,1e-08,201.16,201.14,26.0]
[1759055366369,1e-08,201.16,201.15,64.22]
[1759055367195,1e-08,201.16,201.15,69.19141436]
[1759055373297,0.69000001,201.16,201.13,134.7]
[1759055373500,1e-08,201.16,201.15,38.26]
[1759055373992,0.69000001,201.16,201.15,38.26]
[1759055375584,0.69000001,201.16,201.15,38.24]
[1759055378009,0.69000001,201.16,201.09,1.99446536]
[1759055378188,0.69,201.15,201.1,38.24]
[1759055378389,1e-08,201.16,201.1,38.24]
[1759055378390,0.69,201.14,201.1,38.24]
[1759055378803,1e-08,201.16,201.1,38.24]
[1759055378990,0.69,201.13,201.1,38.24]
[1759055379321,0.69,201.13,201.11,6.96680808]
[1759055379610,0.69,201.13,201.12,38.26]
[1759055379992,0.69,201.13,201.12,40.25456481]
[1759055381620,0.69,201.13,201.12,40.23456481]
[1759055386110,0.69,201.13,201.12,1.99456481]
[1759055391195,0.69000001,201.16,201.12,1.99456481]
[1759055391414,0.69000001,201.16,201.13,38.22]
[1759055391604,0.69,201.15,201.13,38.22]
[1759055391990,0.69,201.15,201.14,3.53401919]
[1759055393813,1e-08,201.16,201.14,8.50558544]
[1759055394021,1e-08,201.16,201.15,38.2]
[1759055394521,1e-08,201.16,201.15,40.19426649]
[1759055394817,1e-08,201.16,201.15,45.16568085]
[1759055396799,0.69000001,201.16,201.15,40.25426649]
[1759055397819,0.69000001,201.16,201.15,45.22568085]
[1759055398016,1e-08,201.16,201.15,40.25426649]
[1759055399308,1e-08,201.16,201.15,45.22568085]
[1759055404801,1e-08,201.16,201.15,6.96568085]
[1759055405009,1e-08,201.16,201.15,45.20568085]
[1759055406718,29.32923098,201.24,201.15,45.20568085]
[1759055406918,26.0,201.24,201.15,45.20568085]
[1759055407125,26.0,201.24,201.15,43.21141436]
[1759055407326,26.0,201.24,201.16,14.95699862]
[1759055407630,26.0,201.24,201.17,38.22]
[1759055408035,26.0,201.23,201.17,38.22]
[1759055408532,26.0,201.23,201.18,14.95699863]
[1759055408717,0.69,201.22,201.18,14.95699863]
[1759055408921,0.69,201.21,201.18,14.95699863]
[1759055409704,26.0,201.22,201.18,14.95699863]
[1759055409705,0.69,201.2,201.18,14.95699863]
[1759055413246,26.0,201.22,201.18,14.95699863]
[1759055413545,0.67,201.21,201.18,14.95699863]
[1759055415339,0.67,201.21,201.18,19.92764322]
[1759055415647,0.67,201.25,201.18,19.92764322]
[1759055415855,0.67,201.28,201.19,38.18]
[1759055416144,26.0,201.26,201.19,53.1340164]
[1759055416319,26.0,201.26,201.19,38.18]
[1759055416519,26.0,201.26,201.2,14.9540164]
[1759055417052,0.67,201.26,201.21,4.96993191]
[1759055417351,0.67,201.25,201.21,19.92394831]
[1759055417945,0.67,201.25,201.21,4.96993191]
[1759055418146,0.67,201.25,201.22,14.9540164]
[1759055418722,3.33278028,201.26,201.22,14.9540164]
[1759055418922,4.00278028,201.26,201.22,14.9540164]
[1759055419424,0.67,201.26,201.22,14.9540164]
[1759055420228,26.67,201.26,201.22,14.9540164]
[1759055420435,30.00278028,201.26,201.22,14.9540164]
[1759055420632,26.67,201.26,201.22,14.9540164]
[1759055422051,0.72,201.25,201.22,14.9540164]
[1759055423130,0.72,201.24,201.15,12.42795168]
[1759055423336,26.0,201.26,201.18,38.16]
[1759055423543,26.0,201.26,201.21,14.95401639]
[1759055424046,0.72,201.25,201.21,14.95401639]
[1759055424754,26.0,201.26,201.21,19.92381072]
[1759055425250,26.0,201.26,201.21,14.95401639]
[1759055425628,26.72,201.26,201.21,14.95401639]
[1759055425836,26.0,201.26,201.21,14.95401639]
[1759055426035,0.72,201.25,201.21,14.95401639]
[1759055426954,26.0,201.26,201.21,19.92388721]
[1759055427139,0.72,201.25,201.21,19.92388721]
[1759055428652,3.33278028,201.28,201.21,19.92388721]
[1759055428859,0.72,201.27,201.21,19.92388721]
[1759055433256,4.05278028,201.27,201.21,19.92388721]
[1759055433454,4.05278028,201.28,201.21,20.62388721]
[1759055433649,3.33278028,201.27,201.21,20.62388721]
[1759055433957,4.05278028,201.28,201.21,20.62388721]
[1759055434146,4.05278028,201.28,201.21,5.66987082]
[1759055434352,4.05278028,201.28,201.22,19.92288718]
[1759055435857,0.72,201.27,201.22,19.92288718]
[1759055436637,3.33278028,201.28,201.22,20.62288718]
[1759055436843,0.72,201.27,201.22,20.62288718]
[1759055437659,0.72,201.27,201.23,0.7]
[1759055438262,3.33278028,201.28,201.22,19.92288718]
[1759055438561,0.72,201.26,201.22,19.92288718]
[1759055438733,0.72,201.26,201.22,20.62288718]
[1759055438938,0.72,201.26,201.22,5.66961615]
[1759055439862,0.72,201.27,201.23,0.7]
[1759055442865,0.72,201.26,201.22,4.96961615]
[1759055443065,0.72,201.26,201.22,5.66961615]
[1759055446451,0.72,201.26,201.22,4.96961615]
[1759055446651,0.72,201.26,201.23,0.7]
[1759055447180,0.72,201.26,201.22,5.66961615]
[1759055448367,30.96800639,201.29,201.23,0.7]
[1759055448368,0.72,201.27,201.23,0.7]
[1759055450150,30.96800639,201.29,201.22,4.96961615]
[1759055450350,0.72,201.28,201.22,4.96961615]
[1759055450653,0.7,201.27,201.22,4.96961615]
[1759055450859,0.7,201.26,201.22,5.63961615]
[1759055454363,0.7,201.27,201.23,0.67]
[1759055457074,30.96800639,201.29,201.23,0.67]
[1759055457285,0.7,201.26,201.23,0.67]
[1759055457572,0.7,201.27,201.23,0.67]
[1759055457756,0.7,201.27,201.23,4.96942267]
[1759055457951,26.7,201.29,201.24,0.67]
[1759055458369,26.0,201.29,201.24,0.67]
[1759055458560,26.0,201.29,201.25,14.94954529]
[1759055458759,26.0,201.29,201.26,0.67]
[1759055458959,0.7,201.31,201.26,0.67]
[1759055459277,0.9,201.33,201.26,15.61954528]
[1759055459473,0.9,201.33,201.27,5.63845034]
[1759055459658,0.9,201.33,201.28,0.67]
[1759055459879,0.9,201.33,201.29,0.67]
[1759055460668,0.9,201.33,201.29,5.63845034]
[1759055461082,0.2,201.33,201.27,4.96845034]
[1759055461278,0.2,201.33,201.3,0.67]
[1759055461575,0.2,201.33,201.3,18.05995252]
[1759055461792,0.2,201.33,201.31,0.67]
[1759055462493,0.2,201.33,201.32,1.99267691]
[1759055462783,0.2,201.33,201.32,2.66267691]
[1759055463381,0.2,201.33,201.32,7.62989328]
[1759055468574,0.2,201.33,201.32,45.74989328]
[1759055470071,0.2,201.33,201.32,59.34548729]
[1759055475479,0.2,201.33,201.32,194.04548729]
[1759055477568,0.2,201.36,201.33,28.56559401]
[1759055477804,0.2,201.36,201.34,38.08]
[1759055477986,0.2,201.36,201.34,38.78]
[1759055478189,0.2,201.36,201.35,2.69168472]
[1759055479519,0.2,201.36,201.35,33.658161]
[1759055486607,0.2,201.36,201.35,7.658161]
[1759055486805,1e-08,201.37,201.36,26.0]
[1759055486987,1e-08,201.37,201.36,213.05559401]
[1759055487912,1e-08,201.37,201.36,218.02182364]
[1759055488113,1e-08,201.37,201.36,220.01331004]
[1759055492038,1e-08,201.37,201.36,234.98331004]
[1759055492823,0.72000001,201.37,201.36,181.25331004]
[1759055492995,0.72000001,201.37,201.36,219.33331004]
[1759055494228,0.72000001,201.37,201.36,181.25331004]
[1759055494402,0.72000001,201.37,201.36,219.33331004]
[1759055495418,0.72000001,201.37,201.36,162.6914864]
[1759055495620,0.72000001,201.37,201.36,40.0714864]
[1759055495796,0.72000001,201.37,201.36,1.9914864]
[1759055496404,0.72000001,201.37,201.28,4.96820349]
[1759055496600,0.72,201.36,201.33,12.4118401]
[1759055496802,0.72,201.35,201.33,12.4118401]
[1759055497030,0.72,201.34,201.31,38.1]
[1759055497227,0.72,201.33,201.31,38.12]
[1759055497525,0.72,201.32,201.31,38.12]
[1759055498615,0.72,201.32,201.3,14.94656603]
[1759055498812,0.72,201.31,201.25,4.96890713]
[1759055499021,0.72,201.3,201.29,14.94656602]
[1759055499328,0.72,201.3,201.29,53.04656602]
[1759055499558,0.72,201.3,201.21,13.59559401]
[1759055499730,0.72,201.29,201.22,38.1]
[1759055500031,0.72,201.28,201.24,14.95029028]
[1759055500209,4.96770988,201.3,201.25,38.18]
[1759055500529,0.72,201.27,201.24,38.18]
[1759055500713,0.72,201.26,201.24,38.18]
[1759055501028,0.72,201.25,201.24,38.18]
[1759055503414,0.72,201.25,201.24,53.13103536]
[1759055504138,0.72,201.25,201.24,58.10022637]
[1759055504941,26.0,201.31,201.24,58.10022637]
[1759055505244,0.72,201.26,201.24,53.13103536]
[1759055505410,0.72,201.25,201.24,53.13103536]
[1759055505616,0.72,201.27,201.24,53.13103536]
[1759055505815,26.0,201.31,201.24,53.13103536]
[1759055505816,0.72,201.26,201.24,58.10019898]
[1759055506114,0.72,201.25,201.24,58.10019898]
[1759055506439,0.72,201.27,201.24,58.10019898]
[1759055506613,0.72,201.26,201.24,58.10019898]
[1759055508722,26.0,201.31,201.24,58.10019898]
[1759055508921,0.72,201.3,201.25,0.71]
[1759055509225,0.72,201.29,201.26,38.18]
[1759055510022,0.72,201.29,201.27,14.94805551]
[1759055510241,0.72,201.29,201.28,38.18]
[1759055511045,0.71,201.29,201.22,0.66]
[1759055511231,0.71,201.29,201.23,38.18]
[1759055511427,0.71,201.28,201.25,14.95029029]
[1759055511625,0.71,201.27,201.25,53.15029029]
[1759055514225,0.71,201.26,201.25,53.15029029]
[1759055514942,0.71,201.28,201.25,38.2]
[1759055515135,0.71,201.27,201.25,53.15029028]
[1759055517544,0.71,201.29,201.25,53.15029028]
[1759055517735,0.71,201.3,201.25,53.15029028]
[1759055517939,0.71,201.3,201.26,0.66]
[1759055518225,0.71,201.3,201.27,38.18]
[1759055518648,26.0,201.33,201.27,38.18]
[1759055518854,0.71,201.29,201.27,53.12880036]
[1759055522358,0.71,201.3,201.27,53.12880036]
[1759055522853,0.71,201.29,201.27,14.94880036]
[1759055523153,0.71,201.28,201.27,38.2]
[1759055523949,26.0,201.33,201.27,38.2]
[1759055524154,0.71,201.3,201.27,38.2]
[1759055526037,26.71,201.33,201.28,0.66]
[1759055527054,12.41297263,201.41,201.28,5.62806327]
[1759055527365,0.71,201.36,201.29,38.18]
[1759055527541,0.71,201.36,201.29,53.1258214]
[1759055527743,0.71,201.36,201.3,0.66]
[1759055528066,0.71,201.36,201.3,15.60582139]
[1759055528246,0.71,201.36,201.31,0.66]
[1759055528434,0.71,201.35,201.31,38.84]
[1759055530251,0.71,201.35,201.31,38.18]
[1759055530442,0.71,201.35,201.32,0.71]
[1759055532540,4.96531152,201.4,201.32,5.67718703]
[1759055532734,0.71,201.36,201.32,5.67718703]
[1759055533647,26.71,201.38,201.33,0.71]
[1759055533958,26.0,201.38,201.33,0.71]
[1759055534143,0.71,201.4,201.33,38.87]
[1759055534337,0.71,201.4,201.34,4.96672295]
[1759055534531,0.71,201.4,201.34,5.67672295]
[1759055534745,0.71,201.41,201.35,0.71]
[1759055535055,38.18,201.46,201.36,38.18]
[1759055535257,0.71,201.42,201.36,53.12135518]
[1759055535438,0.71,201.42,201.36,53.83135518]
[1759055536663,0.71,201.42,201.36,58.79758481]
[1759055537367,30.96396375,201.46,201.36,58.79758481]
[1759055537563,0.71,201.41,201.36,58.79758481]
[1759055537857,0.71,201.4,201.36,53.83135518]
[1759055538060,26.0,201.43,201.32,26.0]
[1759055538061,0.71000001,201.37,201.32,5.67721637]
[1759055538246,0.71000001,201.37,201.34,38.18]
[1759055538442,0.71000001,201.37,201.34,14.94358795]
[1759055538638,0.71000001,201.37,201.34,53.12358795]
[1759055538864,0.71,201.36,201.34,53.12358795]
[1759055539067,1e-08,201.37,201.34,53.12358795]
[1759055539244,0.71000001,201.37,201.34,58.09027478]
[1759055539441,0.71000001,201.37,201.34,58.80027478]
[1759055540138,1e-08,201.37,201.34,58.09027478]
[1759055540334,1e-08,201.37,201.35,0.71]
[1759055540548,1e-08,201.37,201.35,38.89]
[1759055541052,1e-08,201.37,201.35,38.18]
[1759055544356,1e-08,201.37,201.35,38.89]
[1759055546068,1e-08,201.37,201.35,38.87]
[1759055546254,1e-08,201.37,201.35,43.83647456]
[1759055546755,1e-08,201.37,201.36,0.71]
[1759055547247,1e-08,201.37,201.35,38.16]
[1759055547447,1e-08,201.37,201.35,38.87]
[1759055547641,1e-08,201.37,201.36,0.71]
[1759055548471,1e-08,201.37,201.36,5.67622963]
[1759055549576,1e-08,201.37,201.36,0.71]
[1759055550567,1e-08,201.37,201.35,38.16]
[1759055550754,0.66,201.36,201.35,38.14]
[1759055552258,0.66,201.36,201.34,38.14]
[1759055553272,0.66000001,201.37,201.34,38.14]
[1759055554984,1e-08,201.37,201.35,0.71]
[1759055555282,1e-08,201.37,201.36,0.71]
[1759055555973,1e-08,201.37,201.36,38.83]
[1759055559618,1e-08,201.37,201.36,53.77284362]
[1759055559881,1e-08,201.37,201.36,53.06284362]
[1759055560880,1e-08,201.37,201.36,53.77284362]
[1759055561684,1e-08,201.37,201.36,53.06284362]
[1759055561984,1e-08,201.37,201.36,38.83]
[1759055566182,1e-08,201.37,201.36,38.12]
[1759055566689,1e-08,201.37,201.35,38.1]
[1759055566990,1e-08,201.37,201.35,53.04358795]
[1759055567283,1e-08,201.37,201.35,53.75358795]
[1759055568777,0.66,201.36,201.35,14.94358795]
[1759055569081,0.66,201.36,201.28,4.96820349]
[1759055569293,0.66,201.35,201.3,14.94656603]
[1759055569603,0.66,201.34,201.3,53.06656603]
[1759055569889,0.66,201.34,201.31,0.71]
[1759055570794,0.66,201.34,201.3,53.75656603]
[1759055571573,0.66,201.34,201.3,53.06656603]
[1759055571800,0.66,201.34,201.31,0.69]
[1759055572401,0.66,201.34,201.31,15.63656602]
[1759055572701,0.66,201.34,201.31,0.69]
[1759055573783,0.69,201.34,201.3,43.08768879]
[1759055573990,0.69,201.34,201.3,38.12]
[1759055574184,4.96602281,201.37,201.3,38.12]
[1759055574185,0.69,201.33,201.3,53.75731073]
[1759055574902,0.69,201.34,201.3,53.75731073]
[1759055575104,0.69,201.34,201.3,53.06731073]
[1759055575407,0.69,201.34,201.31,0.69]
[1759055577307,0.69,201.36,201.3,58.03490616]
[1759055577602,0.69,201.35,201.31,0.69]
[1759055577802,0.69,201.35,201.32,0.69]
[1759055578104,0.69,201.35,201.31,0.69]
[1759055578278,0.69,201.34,201.31,0.69]
[1759055578484,0.69,201.33,201.3,53.06731073]
[1759055578688,0.69,201.33,201.3,53.75731073]
[1759055578881,0.69,201.35,201.31,0.69]
[1759055579078,30.96605048,201.37,201.31,0.69]
[1759055579285,0.69,201.36,201.31,0.69]
[1759055579484,0.69,201.36,201.3,58.03501036]
[1759055579688,0.69,201.35,201.3,58.72501036]
[1759055579906,30.96605048,201.37,201.31,0.69]
[1759055579907,0.69,201.34,201.31,0.69]
[1759055582504,0.69,201.34,201.3,14.94731073]
[1759055582712,26.00000001,201.37,201.25,0.69]
[1759055582713,26.69,201.33,201.25,0.69]
[1759055582911,26.69,201.33,201.25,15.64029029]
[1759055583081,0.69,201.32,201.25,15.64029029]
[1759055583402,0.69,201.31,201.25,14.95029029]
[1759055583607,0.69,201.3,201.25,14.95029029]
[1759055583915,0.69,201.29,201.25,14.95029029]
[1759055584211,0.69,201.28,201.25,14.95029029]
[1759055586310,0.69,201.28,201.23,5.65938253]
[1759055586615,0.69,201.28,201.24,0.69]
[1759055587513,0.69,201.27,201.22,53.05252573]
[1759055587808,0.69,201.27,201.22,38.79]
[1759055588006,0.69,201.26,201.23,0.69]
[1759055588809,0.69,201.25,201.21,0.69]
[1759055591806,0.69,201.25,201.2,58.0434141]
[1759055592016,0.69,201.25,201.22,0.72]
[1759055592196,30.96847753,201.27,201.2,14.95327103]
[1759055592399,0.69,201.24,201.2,0.72]
[1759055592706,0.69,201.24,201.17,15.67327103]
[1759055592888,0.69,201.23,201.17,15.67327103]
[1759055593212,0.69,201.22,201.17,0.72]
[1759055593517,0.69,201.21,201.18,0.72]
[1759055595522,18.5645381,201.25,201.16,53.79699863]
[1759055595703,0.69,201.21,201.16,53.79699863]
[1759055595904,0.69,201.21,201.17,0.72]
[1759055596101,0.69,201.21,201.18,0.72]
[1759055597420,43.10894409,201.25,201.13,12.42954952]
[1759055597421,0.69,201.2,201.13,0.72]
[1759055597594,26.0,201.17,201.12,0.1]
[1759055597790,26.69,201.16,201.12,0.1]
[1759055599316,26.69,201.16,201.12,0.82]
[1759055599717,0.69,201.16,201.12,0.82]
[1759055602829,0.68,201.19,201.15,0.65]
[1759055603022,26.0,201.18,201.16,0.65]
[1759055603324,26.0,201.18,201.14,0.75]
[1759055603525,26.0,201.18,201.15,0.65]
[1759055605630,26.68,201.18,201.15,0.65]
[1759055606332,26.0,201.22,201.16,0.65]
[1759055606506,51.79559401,201.25,201.16,0.65]
[1759055606711,0.68,201.24,201.16,5.62190348]
[1759055607039,0.68,201.23,201.17,0.65]
[1759055607407,0.68,201.23,201.17,6.27190348]
[1759055607737,64.88,201.25,201.18,0.65]
[1759055607933,38.88,201.25,201.18,0.65]
[1759055608314,38.88,201.25,201.19,4.97042596]
[1759055608517,38.88,201.25,201.2,0.65]
[1759055608725,0.68,201.24,201.2,0.65]
[1759055610933,38.2,201.25,201.2,0.65]
[1759055611126,0.68,201.23,201.16,4.97116723]
[1759055611326,0.68,201.23,201.19,0.65]
[1759055611713,0.68,201.23,201.2,0.65]
[1759055620816,0.68,201.23,201.16,0.65]
[1759055622240,5.64951753,201.23,201.16,0.65]
[1759055622444,5.64951753,201.23,201.16,5.62116595]
[1759055622636,4.96951753,201.23,201.16,5.62116595]
[1759055622828,0.68,201.22,201.16,5.62116595]
[1759055623021,0.68,201.21,201.16,5.62116595]
[1759055623223,0.68,201.2,201.17,0.65]
[1759055625037,38.14,201.24,201.16,30.97116595]
[1759055625354,0.68,201.23,201.17,0.65]
[1759055625960,0.68,201.25,201.17,0.65]
[1759055626458,0.68,201.25,201.18,4.97067302]
[1759055626627,0.68,201.24,201.19,0.65]
[1759055626952,0.68,201.23,201.2,0.65]
[1759055630141,0.68,201.24,201.2,0.65]
[1759055630444,0.68,201.24,201.18,4.97067302]
[1759055630647,0.7,201.24,201.2,0.66]
[1759055630949,0.7,201.23,201.2,0.66]
[1759055631941,0.7,201.23,201.18,4.97067302]
[1759055632137,0.7,201.23,201.2,0.66]
[1759055632534,0.7,201.23,201.18,0.66]
[1759055632736,0.7,201.22,201.19,0.66]
[1759055633433,4.9689665,201.25,201.19,0.66]
[1759055633638,0.7,201.24,201.19,0.66]
[1759055634162,0.7,201.23,201.2,0.66]
[1759055636455,0.7,201.23,201.17,5.6289665]